bitfinex/quotes_BTCUSD_20241101
["timestamp","ask_amount","ask_price","bid_price","bid_amount"]
[1730484673505,0.005,69462.0,69461.0,0.35539789]
[1730484674578,0.35948682,69468.0,69461.0,0.35539789]
[1730484674821,0.35948682,69468.0,69467.0,0.13383289]
[1730484674822,0.21553582,69468.0,69467.0,0.13383289]
[1730484675259,0.143949,69469.0,69467.0,0.13383289]
[1730484675717,0.02110051,69470.0,69468.0,0.0958]
[1730484675930,0.001642,69472.0,69471.0,0.143944]
[1730484676148,0.001642,69472.0,69471.0,0.32492251]
[1730484676350,0.001642,69472.0,69471.0,0.46049925]
[1730484677032,0.21553582,69482.0,69471.0,0.46049925]
[1730484677033,0.21553582,69482.0,69481.0,0.30813289]
[1730484677457,0.35945782,69482.0,69481.0,0.30813289]
[1730484677665,0.287828,69486.0,69481.0,0.30813289]
[1730484678123,0.21553582,69490.0,69481.0,0.30813289]
[1730484678337,0.64725482,69490.0,69489.0,0.13383289]
[1730484678547,0.66042243,69490.0,69489.0,0.13383289]
[1730484678770,0.44488661,69490.0,69489.0,0.13383289]
[1730484679175,0.15707261,69490.0,69489.0,0.13383289]
[1730484679853,0.16207261,69490.0,69489.0,0.13383289]
[1730484680307,0.16807261,69490.0,69489.0,0.13483289]
[1730484680536,0.154905,69490.0,69489.0,0.13483289]
[1730484680774,0.154905,69490.0,69489.0,0.001]
[1730484680775,0.4295168,69490.0,69489.0,0.001]
[1730484680997,0.3066601,69490.0,69472.0,0.078]
[1730484681207,0.14394,69473.0,69472.0,0.078]
[1730484681458,0.143933,69477.0,69472.0,0.078]
[1730484681666,0.23845525,69489.0,69476.0,0.13383289]
[1730484681878,0.143933,69477.0,69476.0,0.13383289]
[1730484682265,0.023,69487.0,69476.0,0.13383289]
[1730484682470,0.143932,69477.0,69476.0,0.13383289]
[1730484683408,0.13845525,69486.0,69476.0,0.13483289]
[1730484683617,0.143932,69477.0,69476.0,0.13483289]
[1730484683818,0.143932,69477.0,69476.0,0.13383289]
[1730484683988,0.004,69477.0,69476.0,0.13383289]
[1730484684360,0.143929,69479.0,69476.0,0.13383289]
[1730484684569,0.287848,69481.0,69476.0,0.13383289]
[1730484684755,0.14393,69478.0,69476.0,0.13483289]
[1730484684991,0.287848,69481.0,69476.0,0.13483289]
[1730484685195,0.143928,69479.0,69476.0,0.13383289]
[1730484685605,0.143928,69479.0,69476.0,0.13483289]
[1730484685853,0.143928,69479.0,69476.0,0.13583289]
[1730484686007,0.143928,69479.0,69476.0,0.13483289]
[1730484686220,0.143928,69479.0,69476.0,0.13383289]
[1730484686421,0.28784,69483.0,69476.0,0.13583289]
[1730484686624,0.21553582,69493.0,69482.0,0.1744]
[1730484686837,0.21553582,69483.0,69482.0,0.1744]
[1730484687008,0.21553582,69493.0,69482.0,0.1744]
[1730484687210,0.01317268,69492.0,69483.0,0.13383289]
[1730484687531,0.143916,69485.0,69483.0,0.13383289]
[1730484687758,0.143918,69484.0,69483.0,0.13383289]
[1730484687961,0.287827,69487.0,69483.0,0.13383289]
[1730484688189,0.287827,69487.0,69482.0,0.1744]
[1730484688392,0.14392,69483.0,69482.0,0.0829]
[1730484688966,0.14892,69483.0,69482.0,0.0829]
[1730484689532,0.15592,69483.0,69482.0,0.0839]
[1730484689755,0.018,69483.0,69482.0,0.0849]
[1730484689964,0.006,69483.0,69482.0,0.0839]
[1730484690160,0.01,69483.0,69482.0,0.0839]
[1730484691271,0.004,69483.0,69482.0,0.226822]
[1730484691491,0.004,69483.0,69482.0,0.18387809]
[1730484691727,0.004,69483.0,69482.0,0.324922]
[1730484691944,0.007,69483.0,69482.0,0.325922]
[1730484692170,0.003,69483.0,69482.0,0.324922]
[1730484692421,0.21553582,69493.0,69491.0,0.143901]
[1730484692632,0.001644,69501.0,69493.0,0.0972]
[1730484692857,0.289336,69516.0,69493.0,0.0972]
[1730484692858,0.21553582,69514.0,69503.0,0.143878]
[1730484693072,0.21553582,69505.0,69504.0,0.45930838]
[1730484693291,0.21553582,69514.0,69504.0,0.44638814]
[1730484693530,0.21553582,69514.0,69512.0,0.13383289]
[1730484693767,0.21553582,69514.0,69512.0,0.27769189]
[1730484694024,0.00163,69516.0,69512.0,0.27769189]
[1730484694220,0.00163,69516.0,69512.0,0.13383289]
[1730484694453,0.00163,69516.0,69513.0,0.37059188]
[1730484694675,0.00163,69516.0,69515.0,0.143853]
[1730484694929,0.00163,69516.0,69514.0,0.143855]
[1730484695137,0.00163,69516.0,69513.0,0.08]
[1730484695392,0.00163,69516.0,69514.0,0.143855]
[1730484695393,0.00263,69516.0,69514.0,0.143855]
[1730484695793,0.00163,69516.0,69514.0,0.143855]
[1730484695993,0.00163,69516.0,69515.0,0.143853]
[1730484696171,0.00263,69516.0,69515.0,0.243053]
[1730484696364,0.00363,69516.0,69515.0,0.243053]
[1730484696605,0.00263,69516.0,69515.0,0.243053]
[1730484697049,0.00363,69516.0,69515.0,0.243053]
[1730484697290,0.143853,69515.0,69514.0,0.012]
[1730484697500,0.143855,69514.0,69513.0,0.08]
[1730484698323,0.291334,69516.0,69513.0,0.08]
[1730484698524,0.00363,69516.0,69513.0,0.08]
[1730484698748,0.001,69515.0,69514.0,0.150855]
[1730484698972,0.001,69515.0,69514.0,0.007]
[1730484699197,0.00263,69516.0,69515.0,0.006]
[1730484699409,0.00163,69516.0,69515.0,0.13383289]
[1730484699832,0.00163,69516.0,69515.0,0.37616266]
[1730484700053,0.00263,69516.0,69515.0,0.37328589]
[1730484700266,0.00163,69516.0,69515.0,0.37328589]
[1730484700619,0.00263,69516.0,69515.0,0.37928589]
[1730484701197,0.00263,69516.0,69515.0,0.59664114]
[1730484701651,0.00263,69516.0,69515.0,0.45818589]
[1730484701851,0.00163,69516.0,69515.0,0.45218589]
[1730484702052,0.00263,69516.0,69515.0,0.46318589]
[1730484702267,0.00263,69516.0,69515.0,0.46718589]
[1730484702443,0.00263,69516.0,69515.0,0.45218589]
[1730484702444,0.00163,69516.0,69515.0,0.45218589]
[1730484702867,0.00263,69516.0,69515.0,0.60064114]
[1730484703087,0.00263,69516.0,69515.0,0.59064114]
[1730484703088,0.00163,69516.0,69515.0,0.59064114]
[1730484703516,0.00263,69516.0,69515.0,0.60064114]
[1730484704105,0.00363,69516.0,69515.0,0.61164114]
[1730484704520,0.00263,69516.0,69515.0,0.60064114]
[1730484704895,0.00363,69516.0,69515.0,0.61064114]
[1730484705097,0.00363,69516.0,69515.0,0.47218589]
[1730484705316,0.00363,69516.0,69515.0,0.0989]
[1730484705533,0.32110973,69516.0,69515.0,0.01]
[1730484705753,0.32110973,69516.0,69482.0,0.288665]
[1730484705754,0.143878,69503.0,69502.0,0.083]
[1730484705981,0.15705148,69503.0,69502.0,0.083]
[1730484706186,0.15705148,69503.0,69502.0,0.21683289]
[1730484706187,0.01317348,69503.0,69502.0,0.21683289]
[1730484706627,0.15705148,69503.0,69502.0,0.083]
[1730484707048,0.15705148,69503.0,69502.0,0.085]
[1730484707259,0.15705148,69503.0,69502.0,0.083]
[1730484707690,0.01317348,69503.0,69502.0,0.083]
[1730484707893,0.01317367,69503.0,69502.0,0.21683289]
[1730484708292,0.143877,69504.0,69502.0,0.21683289]
[1730484708618,0.15705296,69503.0,69502.0,0.083]
[1730484708857,0.01317496,69503.0,69502.0,0.086]
[1730484709062,0.01317496,69503.0,69502.0,0.083]
[1730484709445,0.01317496,69503.0,69502.0,0.085]
[1730484709810,0.21553582,69508.0,69502.0,0.21683289]
[1730484710060,0.30091768,69507.0,69502.0,0.21983289]
[1730484710269,0.01317568,69506.0,69502.0,0.083]
[1730484710471,0.21553582,69508.0,69502.0,0.083]
[1730484710472,0.143878,69503.0,69502.0,0.083]
[1730484710680,0.01317568,69503.0,69502.0,0.085]
[1730484711114,0.01317568,69503.0,69502.0,0.087]
[1730484711338,0.15705368,69503.0,69502.0,0.087]
[1730484711562,0.15705368,69503.0,69502.0,0.085]
[1730484711784,0.15705368,69503.0,69502.0,0.083]
[1730484712004,0.15905368,69503.0,69502.0,0.083]
[1730484712227,0.15905368,69503.0,69502.0,0.003]
[1730484712228,0.01517568,69503.0,69502.0,0.003]
[1730484712439,0.18014216,69503.0,69502.0,0.003]
[1730484712890,0.18114216,69503.0,69502.0,0.003]
[1730484713105,0.18114216,69503.0,69494.0,0.0799]
[1730484713106,0.143895,69495.0,69494.0,0.0799]
[1730484713322,0.01317568,69495.0,69494.0,0.0799]
[1730484713741,0.15707068,69495.0,69494.0,0.0799]
[1730484714397,0.15707068,69495.0,69487.0,0.13383289]
[1730484714398,0.287812,69490.0,69487.0,0.076]
[1730484714615,0.14392,69483.0,69482.0,0.000821]
[1730484715912,0.1581118,69483.0,69482.0,0.010821]
[1730484716864,0.1591118,69483.0,69482.0,0.014821]
[1730484718817,0.14592,69483.0,69482.0,0.014821]
[1730484719025,0.15911961,69483.0,69482.0,0.014821]
[1730484719890,0.01519961,69483.0,69482.0,0.014821]
[1730484720332,0.01519961,69483.0,69482.0,0.14865389]
[1730484722534,0.002,69483.0,69482.0,0.14865389]
[1730484722743,0.002,69483.0,69482.0,0.29257589]
[1730484726093,0.002,69483.0,69482.0,0.014821]
[1730484728109,0.14592,69483.0,69482.0,0.014821]
[1730484728324,0.36145582,69483.0,69482.0,0.014821]
[1730484728545,0.1591126,69483.0,69482.0,0.014821]
[1730484728772,0.14592,69483.0,69482.0,0.014821]
[1730484729410,0.14492,69483.0,69482.0,0.010821]
[1730484729663,0.287827,69486.0,69482.0,0.500821]
[1730484729884,0.023,69490.0,69482.0,0.503821]
[1730484730110,0.13845525,69491.0,69482.0,0.506821]
[1730484730325,0.01318679,69490.0,69482.0,0.650743]
[1730484730533,0.14391,69488.0,69482.0,0.503821]
[1730484730772,0.287819,69488.0,69482.0,0.503821]
[1730484731000,0.14392,69483.0,69482.0,0.503821]
[1730484731227,0.14392,69483.0,69482.0,0.000821]
[1730484731433,0.15710679,69483.0,69482.0,0.000821]
[1730484731666,0.15710679,69483.0,69482.0,0.003821]
[1730484731908,0.15710679,69483.0,69482.0,0.000821]
[1730484732115,0.15710679,69483.0,69482.0,0.004821]
[1730484732364,0.77109635,69483.0,69482.0,0.004821]
[1730484732565,0.143953,69467.0,69466.0,0.0799]
[1730484732996,0.287899,69469.0,69461.0,0.098421]
[1730484733208,0.143961,69463.0,69461.0,0.098421]
[1730484733419,0.14396,69464.0,69461.0,0.098421]
[1730484733657,0.71965,69478.0,69461.0,0.098421]
[1730484733864,0.123,69479.0,69461.0,0.098421]
[1730484733865,0.143957,69465.0,69461.0,0.098421]
[1730484734512,0.143963,69462.0,69461.0,0.098421]
[1730484734719,0.287923,69463.0,69461.0,0.098421]
[1730484734870,0.143963,69462.0,69461.0,0.098421]
[1730484735073,0.143957,69465.0,69461.0,0.099421]
[1730484735275,0.001,69463.0,69461.0,0.099421]
[1730484735693,0.001,69462.0,69461.0,0.104421]
[1730484735914,0.21553582,69467.0,69461.0,0.104421]
[1730484735915,0.04213751,69495.0,69469.0,0.0961]
[1730484736110,0.21553582,69481.0,69480.0,0.143926]
[1730484736317,0.22874112,69494.0,69480.0,0.0779]
[1730484736318,0.21553582,69494.0,69480.0,0.0779]
[1730484736529,0.01320945,69493.0,69482.0,0.287844]
[1730484736695,0.01320945,69493.0,69490.0,0.143903]
[1730484736942,0.01320945,69493.0,69492.0,0.13383289]
[1730484737167,0.143895,69495.0,69492.0,0.13383289]
[1730484737392,0.01321249,69494.0,69492.0,0.13383289]
[1730484737604,0.01321249,69493.0,69492.0,0.13383289]
[1730484738042,0.013,69495.0,69492.0,0.13383289]
[1730484738269,0.013,69495.0,69494.0,0.27772989]
[1730484738493,0.21553582,69501.0,69496.0,0.287786]
[1730484738727,0.21553582,69501.0,69500.0,0.13383289]
[1730484738939,0.01322122,69501.0,69500.0,0.13383289]
[1730484740825,0.01522122,69501.0,69500.0,0.13383289]
[1730484741963,0.01522122,69501.0,69500.0,0.27771689]
[1730484744220,0.0152255,69501.0,69500.0,0.27771689]
[1730484744681,0.002,69501.0,69500.0,0.51037214]
[1730484745621,0.21553582,69513.0,69500.0,0.36648814]
[1730484745846,0.21553582,69513.0,69512.0,0.14386]
[1730484746075,0.22876075,69513.0,69512.0,0.14386]
[1730484746306,0.22876075,69513.0,69511.0,0.143862]
[1730484746307,0.01322493,69513.0,69511.0,0.143862]
[1730484746526,0.01322493,69513.0,69512.0,0.14386]
[1730484746756,0.01422493,69513.0,69512.0,0.143858]
[1730484746977,0.001,69513.0,69512.0,0.143858]
[1730484747452,0.01322358,69514.0,69513.0,0.143857]
[1730484747712,0.001642,69515.0,69514.0,0.143855]
[1730484747941,0.001642,69515.0,69514.0,0.226555]
[1730484748397,0.001642,69515.0,69513.0,0.143857]
[1730484748620,0.001642,69515.0,69509.0,0.287732]
[1730484748851,0.001642,69515.0,69514.0,0.143855]
[1730484749089,0.001642,69515.0,69513.0,0.147857]
[1730484749547,0.001642,69515.0,69513.0,0.004]
[1730484749768,0.143855,69514.0,69513.0,0.007]
[1730484750020,0.15705427,69514.0,69513.0,0.007]
[1730484750477,0.15705427,69514.0,69513.0,0.003]
[1730484750694,0.287722,69512.0,69503.0,0.143878]
[1730484750915,0.143866,69509.0,69501.0,0.287761]
[1730484751149,0.143866,69509.0,69504.0,0.143875]
[1730484751369,0.143863,69511.0,69504.0,0.287752]
[1730484751615,0.143862,69511.0,69505.0,0.143872]
[1730484751828,0.289349,69515.0,69498.0,0.287777]
[1730484751829,0.287748,69506.0,69498.0,0.287777]
[1730484752055,0.001642,69515.0,69490.0,0.0904]
[1730484752056,0.287732,69509.0,69490.0,0.1696]
[1730484752281,0.143881,69502.0,69496.0,0.143892]
[1730484752740,0.14388,69503.0,69495.0,0.28779]
[1730484752961,0.14388,69502.0,69496.0,0.143891]
[1730484753181,0.143883,69501.0,69494.0,0.27772889]
[1730484753390,0.13845525,69509.0,69494.0,0.27772889]
[1730484753391,0.001,69506.0,69498.0,0.009]
[1730484753616,0.143874,69505.0,69504.0,0.01]
[1730484753845,0.143887,69499.0,69494.0,0.13383289]
[1730484754055,0.287769,69501.0,69494.0,0.13383289]
[1730484754281,0.001,69502.0,69496.0,0.013]
[1730484754487,0.143882,69502.0,69495.0,0.143893]
[1730484755404,0.143882,69502.0,69494.0,0.13383289]
[1730484755636,0.143883,69501.0,69496.0,0.009]
[1730484756075,0.143883,69501.0,69494.0,0.13383289]
[1730484756558,0.143883,69501.0,69496.0,0.006]
[1730484756994,0.143883,69501.0,69495.0,0.006]
[1730484757211,0.144883,69501.0,69495.0,0.006]
[1730484757429,0.144883,69501.0,69494.0,0.14183289]
[1730484757640,0.08427502,69524.0,69494.0,0.13383289]
[1730484757885,0.001,69501.0,69496.0,0.006]
[1730484758099,0.143871,69507.0,69497.0,0.143889]
[1730484758324,0.143871,69507.0,69495.0,0.28779]
[1730484758325,0.143871,69507.0,69499.0,0.13383289]
[1730484758540,0.001,69501.0,69499.0,0.13383289]
[1730484759415,0.001,69501.0,69494.0,0.295791]
[1730484759416,0.001,69501.0,69494.0,0.14183289]
[1730484759638,0.21553582,69506.0,69490.0,0.1696]
[1730484759864,0.21553582,69506.0,69484.0,0.13383289]
[1730484759865,0.143884,69500.0,69499.0,0.002]
[1730484760313,0.143884,69500.0,69483.0,0.0757]
[1730484760314,0.287799,69493.0,69483.0,0.0757]
[1730484760518,0.13845525,69505.0,69483.0,0.363538]
[1730484760732,0.143895,69495.0,69494.0,0.015]
[1730484760939,0.143895,69495.0,69494.0,0.007]
[1730484761594,0.287785,69497.0,69494.0,0.007]
[1730484761802,0.143895,69495.0,69494.0,0.007]
[1730484762005,0.15164829,69495.0,69481.0,0.000821]
[1730484762243,0.14392,69483.0,69481.0,0.000821]
[1730484762722,0.143918,69484.0,69481.0,0.000821]
[1730484762974,0.143922,69482.0,69481.0,0.000821]
[1730484763616,0.143922,69482.0,69481.0,0.009821]
[1730484764028,0.143922,69482.0,69481.0,0.008821]
[1730484764251,0.143922,69482.0,69481.0,0.010821]
[1730484764456,0.143922,69482.0,69481.0,0.008821]
[1730484764869,0.144922,69482.0,69481.0,0.008821]
[1730484765286,0.15813415,69482.0,69481.0,0.000821]
[1730484765696,0.16013415,69482.0,69481.0,0.000821]
[1730484765927,0.003,69482.0,69481.0,0.000821]
[1730484766413,0.003,69482.0,69481.0,0.22412317]
[1730484766610,0.003,69482.0,69481.0,0.35970025]
[1730484766855,0.001,69482.0,69481.0,0.35970025]
[1730484767090,0.01321332,69496.0,69487.0,0.14391]
[1730484767310,0.01321332,69496.0,69481.0,0.21577625]
[1730484767311,0.21553582,69490.0,69481.0,0.21577625]
[1730484767517,0.287776,69499.0,69482.0,0.13845525]
[1730484767518,0.287773,69499.0,69482.0,0.13845525]
[1730484767728,0.287773,69499.0,69485.0,0.143915]
[1730484767729,0.287782,69497.0,69485.0,0.143915]
[1730484767934,0.287782,69497.0,69486.0,0.143913]
[1730484767935,0.143896,69495.0,69486.0,0.143913]
[1730484768139,0.01321507,69494.0,69486.0,0.143913]
[1730484768357,0.30101107,69494.0,69482.0,0.13845525]
[1730484768559,0.01321507,69493.0,69481.0,0.093321]
[1730484768761,0.143922,69482.0,69481.0,0.093321]
[1730484769002,0.143922,69482.0,69481.0,0.014821]
[1730484769214,0.143922,69482.0,69481.0,0.009821]
[1730484769438,0.15713164,69482.0,69481.0,0.009821]
[1730484769654,0.17826623,69482.0,69481.0,0.000821]
[1730484770081,0.34072148,69482.0,69481.0,0.009821]
[1730484770343,0.32058689,69482.0,69481.0,0.016821]
[1730484770549,0.31958689,69482.0,69481.0,0.007821]
[1730484770980,0.34171209,69482.0,69481.0,0.013821]
[1730484771180,0.34171209,69482.0,69481.0,0.006821]
[1730484771181,0.31958689,69482.0,69481.0,0.006821]
[1730484772218,0.31858689,69482.0,69481.0,0.000821]
[1730484772420,0.31858689,69482.0,69481.0,0.003821]
[1730484772833,0.4367792,69482.0,69481.0,0.003821]
[1730484773048,0.67061209,69482.0,69481.0,0.003821]
[1730484773270,0.69171957,69482.0,69481.0,0.003821]
[1730484773717,0.69171957,69482.0,69481.0,0.001821]
[1730484773923,0.69336157,69482.0,69481.0,0.000821]
[1730484774142,0.70136157,69482.0,69481.0,0.002821]
[1730484774328,0.70936157,69482.0,69481.0,0.002821]
[1730484775301,0.7133447,69482.0,69481.0,0.002821]
[1730484776369,0.7132762,69482.0,69481.0,0.002821]
[1730484776776,0.67904406,69482.0,69481.0,0.002821]
[1730484776946,0.69221015,69482.0,69481.0,0.002821]
[1730484777155,0.69221015,69482.0,69461.0,0.000821]
[1730484777156,0.166963,69462.0,69461.0,0.000821]
[1730484777359,0.45241723,69462.0,69461.0,0.000821]
[1730484777756,0.5734746,69462.0,69461.0,0.000821]
[1730484779045,0.5734746,69462.0,69461.0,0.002821]
[1730484779245,0.143996,69446.0,69445.0,0.0021593]
[1730484781026,0.28245125,69446.0,69445.0,0.0021593]
[1730484781835,0.28345125,69446.0,69445.0,0.0081593]
[1730484782248,0.28345125,69446.0,69445.0,0.0031593]
[1730484782680,0.28845125,69446.0,69445.0,0.0031593]
[1730484783104,0.156996,69446.0,69445.0,0.0031593]
[1730484785436,0.143996,69446.0,69445.0,0.0029813]
[1730484785690,0.145996,69446.0,69445.0,0.0029813]
[1730484785967,0.146996,69446.0,69445.0,0.0029813]
[1730484786217,0.144996,69446.0,69445.0,0.0029813]
[1730484786435,0.145996,69446.0,69445.0,0.0029813]
[1730484787463,0.143996,69446.0,69445.0,0.0029813]
[1730484788040,0.144996,69446.0,69445.0,0.0029813]
[1730484788218,0.143996,69446.0,69445.0,0.0029813]
[1730484788430,0.287966,69453.0,69445.0,0.0029813]
[1730484788627,0.287985,69449.0,69446.0,0.0751]
[1730484788853,0.28797,69452.0,69447.0,0.0944]
[1730484789057,0.287956,69455.0,69447.0,0.0944]
[1730484789277,0.1,69467.0,69448.0,0.00287969]
[1730484789492,0.143978,69455.0,69448.0,0.00287969]
[1730484789694,0.1,69467.0,69448.0,0.00287969]
[1730484789695,0.14398,69454.0,69448.0,0.00287969]
[1730484789914,0.143984,69452.0,69447.0,0.0944]
[1730484790052,0.1,69467.0,69447.0,0.0944]
[1730484790276,0.21553582,69454.0,69447.0,0.0944]
[1730484790502,0.143992,69448.0,69447.0,0.0944]
[1730484792185,0.143992,69448.0,69447.0,0.0984]
[1730484792603,0.431914,69458.0,69447.0,0.1004]
[1730484792820,0.143982,69453.0,69447.0,0.10327956]
[1730484793066,0.287952,69456.0,69447.0,0.10327956]
[1730484793067,0.143976,69456.0,69449.0,0.14399]
[1730484793506,0.287947,69457.0,69447.0,0.0984]
[1730484793753,0.143985,69452.0,69447.0,0.0984]
[1730484793965,0.143985,69452.0,69447.0,0.1004]
[1730484794178,0.143985,69452.0,69447.0,0.0964]
[1730484794633,0.143985,69452.0,69447.0,0.1004]
[1730484794864,0.143985,69452.0,69447.0,0.0964]
[1730484795343,0.143985,69452.0,69447.0,0.1004]
[1730484795481,0.143985,69452.0,69447.0,0.004]
[1730484795482,0.143992,69448.0,69447.0,0.004]
[1730484795901,0.15715005,69448.0,69447.0,0.006]
[1730484796102,0.25151126,69448.0,69447.0,0.006]
[1730484796305,0.25151126,69448.0,69445.0,0.0029813]
[1730484796306,0.1746133,69448.0,69445.0,0.0029813]
[1730484796510,0.143996,69446.0,69445.0,0.0029813]
[1730484796711,0.28245125,69446.0,69445.0,0.0029813]
[1730484796957,0.3186093,69446.0,69445.0,0.0029813]
[1730484797158,0.5570866,69446.0,69445.0,0.0029813]
[1730484797302,0.5570866,69446.0,69445.0,0.000822]
[1730484797490,0.57815417,69446.0,69445.0,0.000822]
[1730484798318,0.59215417,69446.0,69445.0,0.001822]
[1730484799407,0.70906659,69446.0,69445.0,0.001822]
[1730484800222,0.72306659,69446.0,69445.0,0.001822]
[1730484800896,0.219517,69436.0,69424.0,0.03118973]
[1730484800910,0.342517,69436.0,69435.0,0.824901]
[1730484801134,0.26704,69425.0,69424.0,0.03118973]
[1730484801348,0.55248619,69425.0,69424.0,0.03118973]
[1730484801568,0.4186533,69425.0,69424.0,0.03118973]
[1730484801777,0.4186533,69425.0,69424.0,7.3e-07]
[1730484802042,0.5571306,69425.0,69424.0,7.3e-07]
[1730484802254,0.73192926,69425.0,69424.0,7.3e-07]
[1730484802467,0.74592926,69425.0,69424.0,7.3e-07]
[1730484802680,0.28809,69423.0,69420.0,7.3e-07]
[1730484802892,0.53933614,69421.0,69420.0,7.3e-07]
[1730484803096,0.69097015,69421.0,69420.0,7.3e-07]
[1730484803740,0.55249285,69421.0,69420.0,7.3e-07]
[1730484803969,0.76802867,69421.0,69420.0,7.3e-07]
[1730484804191,0.55249285,69421.0,69420.0,7.3e-07]
[1730484804409,0.56649285,69421.0,69420.0,7.3e-07]
[1730484804866,0.58049285,69421.0,69420.0,7.3e-07]
[1730484805113,0.70497015,69421.0,69420.0,7.3e-07]
[1730484805327,0.71893418,69421.0,69420.0,7.3e-07]
[1730484805533,0.70493418,69421.0,69420.0,7.3e-07]
[1730484805763,0.69093418,69421.0,69420.0,7.3e-07]
[1730484805971,0.70493418,69421.0,69420.0,7.3e-07]
[1730484806394,0.69093418,69421.0,69420.0,7.3e-07]
[1730484806814,0.56645688,69421.0,69420.0,7.3e-07]
[1730484807046,0.58045688,69421.0,69420.0,7.3e-07]
[1730484807277,0.144059,69416.0,69415.0,7.3e-07]
[1730484807502,0.55246788,69416.0,69415.0,7.3e-07]
[1730484807704,0.66813577,69416.0,69415.0,7.3e-07]
[1730484808591,0.267075,69408.0,69389.0,0.00016998]
[1730484808853,0.67319603,69408.0,69389.0,0.00016998]
[1730484809067,0.68631428,69408.0,69389.0,0.00016998]
[1730484809295,0.267088,69402.0,69389.0,0.00016998]
[1730484809531,0.55249439,69402.0,69389.0,0.00016998]
[1730484810594,0.56649439,69402.0,69389.0,0.00016998]
[1730484812072,0.56649439,69402.0,69388.0,25.0]
[1730484812285,0.56737614,69402.0,69388.0,25.0]
[1730484812742,0.5804752,69402.0,69388.0,25.0]
[1730484812946,0.4804752,69402.0,69391.0,0.0768]
[1730484813391,0.34664231,69402.0,69391.0,0.0768]
[1730484814433,0.44664231,69402.0,69391.0,0.0768]
[1730484815266,0.42364231,69402.0,69391.0,0.0768]
[1730484815984,0.28518706,69402.0,69391.0,0.0768]
[1730484816854,0.18518706,69402.0,69391.0,0.14411]
[1730484817063,0.172088,69402.0,69401.0,25.1754]
[1730484817942,0.244088,69402.0,69401.0,25.1754]
[1730484818379,0.272088,69402.0,69401.0,25.1754]
[1730484820338,0.5373139,69402.0,69401.0,25.0]
[1730484820559,0.4236564,69402.0,69401.0,25.0]
[1730484821063,0.4466564,69402.0,69401.0,25.0]
[1730484821504,0.5466564,69402.0,69401.0,25.0]
[1730484821723,0.5466564,69402.0,69401.0,25.000822]
[1730484822619,0.38520115,69402.0,69401.0,25.000822]
[1730484822860,0.372088,69402.0,69401.0,25.000822]
[1730484823065,0.38520755,69402.0,69401.0,25.000822]
[1730484823737,0.38521444,69402.0,69401.0,25.000822]
[1730484825915,0.28521444,69402.0,69401.0,25.000822]
[1730484826830,0.28521444,69402.0,69401.0,25.099922]
[1730484827240,0.28521444,69402.0,69401.0,25.181822]
[1730484828312,0.14112644,69402.0,69401.0,25.181822]
[1730484828517,0.27121444,69402.0,69401.0,25.181822]
[1730484828766,0.11712644,69402.0,69401.0,25.181822]
[1730484828989,0.11912644,69402.0,69401.0,25.181822]
[1730484829196,0.11912644,69402.0,69401.0,25.325912]
[1730484829637,0.11912644,69402.0,69401.0,25.181822]
[1730484830108,0.11912644,69402.0,69401.0,25.325912]
[1730484830715,0.11912644,69402.0,69401.0,25.181822]
[1730484831886,0.52466969,69402.0,69401.0,25.000822]
[1730484832776,0.53926594,69402.0,69401.0,25.000822]
[1730484833758,0.52669252,69402.0,69401.0,25.000822]
[1730484833951,0.52678267,69402.0,69401.0,25.000822]
[1730484834367,0.36132742,69402.0,69401.0,25.000822]
[1730484834560,0.41936182,69402.0,69401.0,25.000822]
[1730484834887,0.41036182,69402.0,69401.0,25.000822]
[1730484835046,0.42436182,69402.0,69401.0,25.000822]
[1730484835257,0.57679424,69402.0,69401.0,25.000822]
[1730484835504,0.42933899,69402.0,69401.0,25.000822]
[1730484835703,0.45391311,69402.0,69401.0,25.000822]
[1730484835919,0.93673707,69402.0,69401.0,25.000822]
[1730484836115,0.70720125,69402.0,69401.0,25.000822]
[1730484836318,0.73520125,69402.0,69401.0,25.000822]
[1730484836629,0.87367855,69402.0,69401.0,25.000822]
[1730484837053,0.86046196,69402.0,69401.0,25.000822]
[1730484837219,0.71141054,69402.0,69401.0,25.000822]
[1730484837441,0.7219832,69402.0,69401.0,25.000822]
[1730484837648,0.69662636,69402.0,69401.0,25.000822]
[1730484837882,0.71062636,69402.0,69401.0,25.000822]
[1730484838085,0.72462636,69402.0,69401.0,25.000822]
[1730484838315,0.71062636,69402.0,69401.0,25.000822]
[1730484838750,0.72119919,69402.0,69401.0,25.000822]
[1730484838947,0.73519919,69402.0,69401.0,25.000822]
[1730484839156,0.74919919,69402.0,69401.0,25.000822]
[1730484839404,0.73519919,69402.0,69401.0,25.000822]
[1730484839818,0.74919919,69402.0,69401.0,25.000822]
[1730484840748,0.72119919,69402.0,69401.0,25.000822]
[1730484841387,0.42591105,69402.0,69401.0,25.000822]
[1730484841611,0.77990212,69402.0,69401.0,25.000822]
[1730484841824,0.68419919,69402.0,69401.0,25.000822]
[1730484842031,0.69819919,69402.0,69401.0,25.000822]
[1730484842430,0.71219919,69402.0,69401.0,25.000822]
[1730484842647,0.69819919,69402.0,69401.0,25.000822]
[1730484842877,0.72119919,69402.0,69401.0,25.000822]
[1730484843123,0.72120906,69402.0,69401.0,25.000822]
[1730484843599,0.41534497,69402.0,69401.0,25.082122]
[1730484843800,0.35466605,69402.0,69401.0,25.082122]
[1730484844035,0.358088,69402.0,69401.0,25.082122]
[1730484844343,0.36866644,69402.0,69401.0,25.082122]
[1730484844548,0.39511284,69402.0,69401.0,25.082122]
[1730484844965,0.40911284,69402.0,69401.0,25.082122]
[1730484845451,0.3985344,69402.0,69401.0,25.082122]
[1730484845650,0.40911228,69402.0,69401.0,25.082122]
[1730484846338,0.30911228,69402.0,69401.0,25.082122]
[1730484846463,0.16502428,69402.0,69401.0,25.082122]
[1730484847095,0.30911228,69402.0,69401.0,25.082122]
[1730484847304,0.29168925,69402.0,69401.0,25.082122]
[1730484847483,0.29568925,69402.0,69401.0,25.082122]
[1730484847976,0.27188938,69402.0,69401.0,25.082122]